[Event "World Junior U20 Girls 2018"]
[Site "Gebze"]
[Date "2018.09.10"]
[Round "6"]
[White "Hereklioglu, Sude"]
[Black "Urh, Zala"]
[Result "0-1"]
[ECO "D02"]
[WhiteElo "1930"]
[BlackElo "2128"]
[Annotator "NA"]
[PlyCount "52"]
[EventDate "2018.09.05"]
[EventType "swiss"]
[EventCountry "TUR"]
[SourceTitle "playchess.com"]
[Source "ChessBase"]
[SourceQuality "1"]
[TimeControl "40/5400+30:1800+30"]

1. d4 {[%emt 0:00:30]} Nf6 {[%emt 0:03:30]} 2. Nf3 {[%emt 0:00:30]} d5 {[%emt 0:00:00]} 3. c3 {[%emt 0:00:30]} e6 {[%emt 0:02:00]} 4. Bg5 {[%emt 0:00:30]} Be7 {[%emt 0:02:30]} 5. Nbd2 {[%emt 0:00:30]} Nbd7 {[%emt 0:03:30]} 6. e3 {[%emt 0:02:30]} h6 {[%emt 0:00:30]} 7. Bf4 {[%emt 0:05:30]} b6 {[%emt 0:05:30]} 8. Bd3 {[%emt 0:01:30]} Bb7 {[%emt 0:01:30]} 9. Ne5 {[%emt 0:01:30]} Nxe5 {[%emt 0:04:30]} 10. dxe5 {[%emt 0:01:30]} Nd7 {[%emt 0:00:30]} 11. h4 {[%emt 0:06:30]} Bxh4 {[%emt 0:08:30]} 12. b4 {[%emt 0:46:30]} (12. Bc2 $15) 12... Bg5 {[%emt 0:04:30]} 13. Qg4 {[%emt 0:04:30]} Bxf4 {[%emt 0:02:30]} 14. exf4 {[%emt 0:00:30]} Qe7 $17 {[%emt 0:04:30]} 15. Qxg7 {[%emt 0:01:30]} O-O-O {[%emt 0:00:00]} 16. Rxh6 {[%emt 0:01:30]} Rhg8 {[%emt 0:01:00]} 17. Qh7 {[%emt 0:00:30]} Rxg2 {[%emt 0:02:30]} 18. Be2 {[%emt 0:04:35]} Nf8 {[%emt 0:06:30]} 19. Qc2 {[%emt 0:12:03]} Ng6 {[%emt 0:04:30]} 20. Nf3 {[%emt 0:00:10]} Nxf4 {[%emt 0:01:30]} 21. Bf1 {[%emt 0:00:10]} Rg6 {[%emt 0:01:30]} 22. Rxg6 {[%emt 0:01:12]} Nxg6 {[%emt 0:00:00]} 23. a4 {[%emt 0:00:26]} d4 {[%emt 0:07:00]} 24. Nxd4 {[%emt 0:02:03]} Nxe5 {[%emt 0:00:30]} 25. Qe2 {[%emt 0:01:12]} Rxd4 {[%emt 0:00:30]} 26. Qxe5 {[%emt 0:00:35]} Re4+ {[%emt 0:00:30]} 0-1

[Event "World Junior U20 Girls 2018"]
[Site "Gebze"]
[Date "2018.09.10"]
[Round "6"]
[White "Tian, Shi Yuan"]
[Black "Catal, Uktenur"]
[Result "0-1"]
[ECO "D34"]
[WhiteElo "1923"]
[BlackElo "1809"]
[Annotator "NA"]
[PlyCount "132"]
[EventDate "2018.09.05"]
[EventType "swiss"]
[EventCountry "TUR"]
[SourceTitle "playchess.com"]
[Source "ChessBase"]
[SourceQuality "1"]
[TimeControl "40/5400+30:1800+30"]

1. d4 {[%emt 0:00:30]} e6 {[%emt 0:00:30]} 2. c4 {[%emt 0:00:30]} d5 {[%emt 0:00:30]} 3. Nc3 {[%emt 0:00:30]} c5 {[%emt 0:00:30]} 4. cxd5 {[%emt 0:00:00]} exd5 {[%emt 0:00:00]} 5. Nf3 {[%emt 0:00:00]} Nf6 {[%emt 0:00:00]} 6. g3 {[%emt 0:00:30]} Nc6 {[%emt 0:00:00]} 7. Bg2 {[%emt 0:00:00]} Be7 {[%emt 0:00:00]} 8. O-O {[%emt 0:00:00]} O-O {[%emt 0:00:00]} 9. Bg5 {[%emt 0:00:00]} cxd4 {[%emt 0:00:00]} 10. Nxd4 {[%emt 0:00:00]} h6 {[%emt 0:00:00]} 11. Be3 {[%emt 0:00:30]} Re8 {[%emt 0:00:00]} 12. Rc1 {[%emt 0:00:30]} Bf8 {[%emt 0:00:00]} 13. Nxc6 {[%emt 0:00:30]} bxc6 {[%emt 0:00:00]} 14. Na4 {[%emt 0:00:00]} Bd7 {[%emt 0:00:00]} 15. Bc5 {[%emt 0:05:00]} Bxc5 {[%emt 0:00:00]} 16. Nxc5 {[%emt 0:00:30]} Bg4 {[%emt 0:00:00]} 17. Re1 {[%emt 0:00:30]} Qa5 {[%emt 0:01:00]} 18. Qc2 {[%emt 0:02:30] D34: Tarrasch Defence: 6 g3 Nf6 7 Bg2 Be7} Rab8 {[%emt 0:04:30]} 19. b3 {[%emt 0:01:30]} Re7 {[%emt 0:24:30] [#]} 20. Bf1 $146 {[%emt 0:19:30]} ({Predecessor:} 20. h3 Bh5 21. Nd3 Bg6 22. Qc5 Qxc5 23. Nxc5 {½-½ (44) Ribli,Z (2610)-Lobron,E (2535) Germany 1990}) 20... Rbe8 {[%emt 0:01:30]} 21. Qb2 {[%emt 0:02:30]} Qb6 {[%emt 0:10:30]} 22. e3 {[%emt 0:06:30]} Nd7 {[%emt 0:08:30]} 23. Nxd7 {[%emt 0:01:30]} Bxd7 {[%emt 0:00:30]} 24. Red1 {[%emt 0:02:30]} a5 {[%emt 0:02:30]} 25. Qc3 {[%emt 0:17:30]} Re4 {[%emt 0:05:30]} 26. Bg2 {[%emt 0:13:30]} Rb4 {[%emt 0:07:30]} 27. h3 {[%emt 0:03:30]} Ra8 {[%emt 0:02:30]} 28. Rd4 {[%emt 0:05:32]} Rxd4 {[%emt 0:01:30]} 29. Qxd4 {[%emt 0:00:01]} Qxd4 {[%emt 0:00:30]} 30. exd4 {[%emt 0:00:01]} Rb8 {[%emt 0:07:30]} 31. g4 {[%emt 0:01:37]} Rb4 {[%emt 0:00:30]} 32. Rd1 {[%emt 0:00:12]} a4 {[%emt 0:03:30]} 33. bxa4 {[%emt 0:00:21]} Rxa4 {[%emt 0:00:00]} 34. Rd2 {[%emt 0:00:30]} Kf8 {[%emt 0:00:00]} 35. Bf3 {[%emt 0:01:50]} Ke7 {[%emt 0:00:00]} 36. Bd1 {[%emt 0:00:00]} Ra3 {[%emt 0:01:00]} 37. Bb3 {[%emt 0:00:09]} Kd6 {[%emt 0:00:00]} 38. Kg2 {[%emt 0:00:51]} g5 {[%emt 0:02:00]} 39. f4 {[%emt 0:01:34]} f6 {[%emt 0:00:30]} 40. Rf2 {[%emt 0:00:00]} Ke7 {[%emt 0:00:00]} 41. Kf3 {[%emt 0:11:22]} Ra8 {[%emt 0:04:00]} 42. Kg3 {[%emt 0:02:30]} Rf8 {[%emt 0:01:30]} 43. f5 {[%emt 0:06:30]} Kd6 {[%emt 0:00:30]} 44. Kf3 {[%emt 0:00:30]} Re8 {[%emt 0:02:30]} 45. Bc2 {[%emt 0:10:29]} c5 {[%emt 0:01:30]} 46. dxc5+ {[%emt 0:00:42]} Kxc5 {[%emt 0:00:30]} 47. Bb3 {[%emt 0:01:16]} Re5 {[%emt 0:00:30]} 48. Rd2 $15 {[%emt 0:02:10]} Bb5 {[%emt 0:02:30]} 49. Kf2 {[%emt 0:00:56]} d4 {[%emt 0:08:30]} 50. Be6 {[%emt 0:01:13]} Re3 {[%emt 0:00:30]} 51. Rc2+ {[%emt 0:01:37]} Rc3 {[%emt 0:00:30]} 52. Rxc3+ {[%emt 0:01:29]} dxc3 {[%emt 0:00:00]} 53. Ke3 {[%emt 0:00:22]} Bf1 {[%emt 0:00:00]} 54. Bb3 {[%emt 0:00:32]} Bxh3 {[%emt 0:01:30]} 55. Bd1 {[%emt 0:00:27]} Bf1 {[%emt 0:00:30]} 56. a4 {[%emt 0:00:25]} Bc4 {[%emt 0:00:30]} 57. a5 {[%emt 0:00:53]} Kb4 {[%emt 0:00:30]} 58. Kd4 {[%emt 0:00:28]} Bf1 {[%emt 0:00:30]} 59. Kd5 {[%emt 0:01:02]} Be2 {[%emt 0:00:30]} 60. Bc2 {[%emt 0:00:37]} Kxa5 {[%emt 0:01:30]} 61. Ke6 {[%emt 0:00:13]} Bxg4 {[%emt 0:00:00]} 62. Kxf6 {[%emt 0:00:02]} Kb4 {[%emt 0:01:00]} 63. Kg6 {[%emt 0:00:51]} Bxf5+ {[%emt 0:00:00]} 64. Bxf5 {[%emt 0:03:23]} Ka3 {[%emt 0:00:00]} 65. Kxh6 {[%emt 0:00:34]} g4 {[%emt 0:00:30]} 66. Bxg4 {[%emt 0:02:17]} c2 {[%emt 0:00:30]} 0-1

[Event "World Junior U20 Girls 2018"]
[Site "Gebze"]
[Date "2018.09.10"]
[Round "6"]
[White "Koo, Wei Xin Rosamund"]
[Black "Huttl, Sofie"]
[Result "1-0"]
[ECO "D52"]
[WhiteElo "1918"]
[BlackElo "1727"]
[Annotator "NA"]
[PlyCount "125"]
[EventDate "2018.09.05"]
[EventType "swiss"]
[EventCountry "TUR"]
[SourceTitle "playchess.com"]
[Source "ChessBase"]
[SourceQuality "1"]
[TimeControl "40/5400+30:1800+30"]

1. d4 {[%emt 0:00:30]} d5 {[%emt 0:00:30]} 2. Nf3 {[%emt 0:00:00]} Nf6 {[%emt 0:00:30]} 3. c4 {[%emt 0:00:00]} c6 {[%emt 0:00:30]} 4. Nc3 {[%emt 0:00:30]} e6 {[%emt 0:00:30]} 5. Bg5 {[%emt 0:01:30]} Nbd7 {[%emt 0:04:30]} 6. e3 {[%emt 0:09:30]} Qa5 {[%emt 0:00:30]} 7. Bxf6 {[%emt 0:15:30]} Nxf6 {[%emt 0:00:30]} 8. Bd3 {[%emt 0:00:00]} dxc4 {[%emt 0:03:30] LiveBook: 4 Games} 9. Bxc4 {[%emt 0:01:00]} Bb4 {[%emt 0:06:30] D52: Queen's Gambit Declined: Cambridge Springs Variation} (9... b5 10. Be2 b4 11. Qa4 Qb6 12. Nb1 Nd7 13. Nbd2 Be7 14. Rc1 Bb7 15. Nc4 Qc7 16. Nce5 Nb6 17. Qa5 {1-0 (35) Ilincic,Z (2441)-Szabolcsi,J (2418) Budapest 2012}) 10. Qb3 {[%emt 0:02:30]} Nd5 {[%emt 0:08:30]} 11. Rc1 {[%emt 0:01:30]} Nxc3 {[%emt 0:04:30]} 12. bxc3 {[%emt 0:00:30]} Be7 {[%emt 0:00:30]} 13. O-O {[%emt 0:00:30]} b5 $146 {[%emt 0:03:30]} ({Predecessor:} 13... O-O 14. Bd3 Bf6 15. Bb1 Qh5 16. c4 e5 17. d5 cxd5 18. cxd5 {0-1 (62) Blachmann,H-Bittner,F Schwaebisch Gmuend 1993}) 14. Bd3 {[%emt 0:01:30]} O-O {[%emt 0:00:30]} 15. Ne5 {[%emt 0:02:30]} Qb6 {[%emt 0:03:30]} 16. c4 {[%emt 0:01:30]} f6 {[%emt 0:15:30]} 17. Nf3 {[%emt 0:01:30]} Bd7 {[%emt 0:03:30] [#]} 18. Bf5 $1 {[%emt 0:09:30]} Kf7 {[%emt 0:10:30]} 19. Bxh7 {[%emt 0:03:30]} Rh8 {[%emt 0:09:30]} 20. Be4 {[%emt 0:08:30]} Rac8 {[%emt 0:03:24]} 21. cxb5 {[%emt 0:03:30]} Qxb5 {[%emt 0:01:34]} 22. Qxb5 {[%emt 0:01:30]} cxb5 {[%emt 0:00:05]} 23. Bb7 {[%emt 0:00:30]} Rxc1 {[%emt 0:02:23]} 24. Rxc1 {[%emt 0:00:30]} Rb8 {[%emt 0:00:15]} 25. Rc7 {[%emt 0:03:30]} Ke8 {[%emt 0:01:05]} 26. Bc6 {[%emt 0:07:30]} Bxc6 {[%emt 0:00:20]} 27. Rxc6 {[%emt 0:00:30]} Kd7 {[%emt 0:00:06]} 28. Ra6 {[%emt 0:03:30]} Rb7 {[%emt 0:00:25]} 29. g3 {[%emt 0:00:00]} Bd8 {[%emt 0:02:38]} 30. Ne1 {[%emt 0:09:12]} Bb6 {[%emt 0:01:23]} 31. Nd3 {[%emt 0:00:22]} Rc7 {[%emt 0:01:08]} 32. Nc5+ {[%emt 0:02:42]} Kd6 {[%emt 0:00:26]} 33. Kg2 {[%emt 0:04:51]} e5 {[%emt 0:03:21]} 34. Nb3 {[%emt 0:02:06]} exd4 {[%emt 0:01:25]} 35. Nxd4 {[%emt 0:00:02]} Rc5 {[%emt 0:00:38]} 36. Ra3 {[%emt 0:00:35]} a5 {[%emt 0:00:51]} 37. Rb3 {[%emt 0:00:03]} b4 {[%emt 0:00:18]} 38. Rd3 {[%emt 0:03:39]} Ke5 {[%emt 0:01:55]} 39. Nf3+ {[%emt 0:00:03]} Ke6 {[%emt 0:00:03]} 40. Rd2 {[%emt 0:00:00]} Rd5 {[%emt 0:00:00]} 41. Kf1 {[%emt 0:03:55]} g5 {[%emt 0:10:17]} 42. g4 {[%emt 0:02:30]} Rd8 {[%emt 0:05:30]} 43. Rxd8 {[%emt 0:02:30]} Bxd8 {[%emt 0:00:30]} 44. Ke2 {[%emt 0:00:00]} Kd5 {[%emt 0:01:30]} 45. Kd3 {[%emt 0:00:00]} Bc7 {[%emt 0:00:30]} 46. h3 {[%emt 0:00:30]} Bb6 $14 {[%emt 0:01:30]} 47. Nd2 {[%emt 0:03:30]} Bc7 {[%emt 0:01:30]} 48. Ne4 {[%emt 0:04:30]} Ke5 {[%emt 0:03:24]} 49. f3 {[%emt 0:03:07]} Bb6 {[%emt 0:00:56]} 50. Nd2 {[%emt 0:01:05]} Kd5 {[%emt 0:01:23]} 51. Nc4 {[%emt 0:02:43]} Bc7 {[%emt 0:03:38]} 52. f4 {[%emt 0:02:48]} gxf4 {[%emt 0:00:30]} 53. exf4 {[%emt 0:00:30]} Bxf4 {[%emt 0:00:30]} 54. Nxa5 {[%emt 0:00:30]} Kc5 {[%emt 0:00:30]} 55. h4 {[%emt 0:00:30]} Kb5 {[%emt 0:00:30]} 56. Nc4 {[%emt 0:00:30]} Bg3 {[%emt 0:00:30]} 57. h5 {[%emt 0:00:30]} Bf4 {[%emt 0:02:51]} 58. Kd4 {[%emt 0:05:29]} Kc6 {[%emt 0:03:57]} 59. Ke4 {[%emt 0:00:46]} Bg5 {[%emt 0:00:14]} 60. Ne3 {[%emt 0:01:07]} Kc5 {[%emt 0:00:57]} 61. Nd5 {[%emt 0:01:18]} Kc4 {[%emt 0:00:23]} 62. Nxb4 {[%emt 0:02:07]} Kxb4 {[%emt 0:00:35]} 63. Kf5 {[%emt 0:00:03]} 1-0

[Event "World Junior U20 Girls 2018"]
[Site "Gebze"]
[Date "2018.09.10"]
[Round "6"]
[White "Doroy Allaney Jia G"]
[Black "Caxita, Esperanca"]
[Result "1-0"]
[ECO "A22"]
[WhiteElo "1914"]
[BlackElo "1803"]
[Annotator "NA"]
[PlyCount "83"]
[EventDate "2018.09.05"]
[EventType "swiss"]
[EventCountry "TUR"]
[SourceTitle "playchess.com"]
[Source "ChessBase"]
[SourceQuality "1"]
[TimeControl "40/5400+30:1800+30"]

1. c4 {[%emt 0:00:30]} e5 {[%emt 0:00:30]} 2. Nc3 {[%emt 0:00:30]} Nf6 {[%emt 0:00:30]} 3. g3 {[%emt 0:00:00]} d5 {[%emt 0:00:30]} 4. cxd5 {[%emt 0:01:00]} Nxd5 {[%emt 0:00:00]} 5. Bg2 {[%emt 0:00:00]} c6 {[%emt 0:04:00]} 6. Nxd5 {[%emt 0:10:00]} cxd5 {[%emt 0:00:30]} 7. Qb3 {[%emt 0:00:30] A22: English Opening: 1...e5 2 Nc3 Nf6} e4 {[%emt 0:01:30]} 8. d3 {[%emt 0:00:30]} f5 {[%emt 0:14:30] [#]} ({Better is} 8... Na6 $14) 9. Nh3 $1 {[%emt 0:00:30]} Nc6 {[%emt 0:06:30] [#]} 10. O-O $1 {[%emt 0:01:30]} Bc5 {[%emt 0:04:30]} (10... Be7 11. Nf4 Nd4 12. Qa4+ Nc6 13. Qb5 O-O 14. Qxd5+ Qxd5 15. Nxd5 {1-0 (27) Samhouri,A (2355)-Alanazy,M (1850) Riadh 2017}) 11. dxe4 {[%emt 0:10:30]} dxe4 $146 {[%emt 0:00:30]} ({Predecessor:} 11... Nd4 12. Qxd5 Qxd5 13. exd5 Nxe2+ 14. Kh1 Nxc1 15. Raxc1 Bd6 16. Rfe1+ Kf7 17. Ng5+ Kf6 18. Ne6 Re8 {½-½ (18) Valciukiene,A-Januseviciute,D (1819) Klaipeda 2010}) 12. Bg5 {[%emt 0:06:30]} Qb6 {[%emt 0:04:30]} 13. Qd5 {[%emt 0:01:30]} Ne7 {[%emt 0:06:30]} 14. Qe5 {[%emt 0:03:30]} Qd6 {[%emt 0:01:30]} 15. Qxg7 {[%emt 0:11:30]} Bd4 {[%emt 0:00:30]} 16. Bxe7 {[%emt 0:07:30]} Qd7 {[%emt 0:00:30]} 17. Qh6 {[%emt 0:00:30]} Qxe7 {[%emt 0:00:30]} 18. Nf4 {[%emt 0:11:30]} Bg7 {[%emt 0:02:30]} 19. Qh5+ {[%emt 0:00:30]} Qf7 {[%emt 0:01:30]} 20. Qxf7+ {[%emt 0:01:30]} Kxf7 {[%emt 0:00:30]} 21. Rac1 {[%emt 0:01:30]} Rd8 {[%emt 0:02:30]} 22. b3 {[%emt 0:00:30]} Be5 {[%emt 0:01:30]} 23. Rfd1 {[%emt 0:07:30]} Bd7 {[%emt 0:02:30]} (23... Be6 $142) 24. e3 $16 {[%emt 0:07:42]} ({Günstiger ist} 24. Rd5 Bxf4 25. gxf4) 24... Bc6 {[%emt 0:01:30]} 25. Bf1 {[%emt 0:00:49]} Ke7 {[%emt 0:04:30]} 26. Bc4 {[%emt 0:00:58]} Rac8 {[%emt 0:02:30]} 27. Be6 {[%emt 0:02:53]} Rxd1+ {[%emt 0:01:30]} 28. Rxd1 {[%emt 0:00:01]} Rf8 {[%emt 0:00:00]} 29. Bc4 {[%emt 0:00:27]} Bxf4 {[%emt 0:05:00]} 30. exf4 {[%emt 0:00:18]} Rf6 {[%emt 0:00:30]} 31. Kf1 {[%emt 0:01:56]} Rh6 {[%emt 0:03:30]} 32. Kg1 {[%emt 0:00:15]} Rf6 {[%emt 0:02:30]} 33. h3 {[%emt 0:00:07]} Rh6 {[%emt 0:01:30]} 34. Kh2 {[%emt 0:00:18]} Rd6 {[%emt 0:00:30]} 35. Rxd6 {[%emt 0:00:59]} Kxd6 {[%emt 0:00:30]} 36. g4 {[%emt 0:00:00]} h6 {[%emt 0:03:30]} 37. Kg3 {[%emt 0:00:25]} Bd7 {[%emt 0:00:30]} 38. Kh4 {[%emt 0:00:52]} Ke7 {[%emt 0:01:30]} 39. g5 {[%emt 0:01:42]} b5 {[%emt 0:09:47]} 40. Bd5 {[%emt 0:00:00]} hxg5+ {[%emt 0:00:00]} 41. Kxg5 {[%emt 0:03:18]} Kf8 {[%emt 0:01:43]} 42. Kf6 {[%emt 0:00:30]} 1-0

[Event "World Junior U20 Girls 2018"]
[Site "Gebze"]
[Date "2018.09.10"]
[Round "6"]
[White "Aksoy, Ayca"]
[Black "Anacoglu, Cisel"]
[Result "1-0"]
[ECO "D00"]
[WhiteElo "1898"]
[BlackElo "1791"]
[Annotator "NA"]
[PlyCount "79"]
[EventDate "2018.09.05"]
[EventType "swiss"]
[EventCountry "TUR"]
[SourceTitle "playchess.com"]
[Source "ChessBase"]
[SourceQuality "1"]
[TimeControl "40/5400+30:1800+30"]

1. Nf3 {[%emt 0:00:30]} Nf6 {[%emt 0:00:30]} 2. d4 {[%emt 0:00:30]} g6 {[%emt 0:00:30]} 3. Nc3 {[%emt 0:00:30]} d5 {[%emt 0:00:00]} 4. Bf4 {[%emt 0:00:00]} Bg7 {[%emt 0:00:00]} 5. Qd2 {[%emt 0:00:00]} c6 {[%emt 0:01:30]} 6. Ne5 {[%emt 0:03:30]} Nbd7 {[%emt 0:00:30]} 7. f3 {[%emt 0:00:30]} Nh5 {[%emt 0:03:30]} 8. Nxd7 {[%emt 0:09:30]} Nxf4 {[%emt 0:05:30]} 9. Ne5 {[%emt 0:04:30]} Ne6 {[%emt 0:08:30]} 10. e3 {[%emt 0:00:30]} Qd6 {[%emt 0:11:30]} 11. f4 {[%emt 0:04:30]} h5 {[%emt 0:03:30]} 12. Be2 {[%emt 0:02:30]} Nc7 {[%emt 0:00:30]} 13. O-O-O {[%emt 0:02:30]} b5 {[%emt 0:01:30]} 14. e4 {[%emt 0:13:30]} (14. h3 $11) 14... b4 {[%emt 0:10:30]} 15. Na4 {[%emt 0:00:30]} dxe4 $11 {[%emt 0:10:30]} 16. Nc5 {[%emt 0:00:30]} a5 {[%emt 0:13:30]} 17. Bc4 {[%emt 0:09:30]} Nd5 {[%emt 0:01:30]} 18. Nxe4 {[%emt 0:02:30]} Qc7 {[%emt 0:01:30]} 19. Kb1 {[%emt 0:04:30]} Bf5 {[%emt 0:05:21]} 20. Nc5 {[%emt 0:04:30]} O-O {[%emt 0:01:47]} 21. h3 {[%emt 0:00:30]} h4 {[%emt 0:03:20]} 22. Qf2 {[%emt 0:01:30]} Bf6 {[%emt 0:00:50]} 23. g4 {[%emt 0:00:30]} hxg3 {[%emt 0:00:37]} 24. Qxg3 {[%emt 0:00:30]} a4 {[%emt 0:00:51]} 25. h4 {[%emt 0:06:30]} b3 {[%emt 0:02:13]} 26. Bd3 {[%emt 0:01:30]} Bxd3 {[%emt 0:03:35]} 27. Rxd3 {[%emt 0:04:30]} Nb4 {[%emt 0:02:43]} 28. Rd2 {[%emt 0:00:30]} bxc2+ {[%emt 0:05:37]} 29. Ka1 {[%emt 0:00:30]} Qa5 {[%emt 0:01:38]} 30. Rg2 {[%emt 0:00:30]} a3 {[%emt 0:00:45]} 31. b3 {[%emt 0:00:00]} Kg7 {[%emt 0:00:31]} 32. Ne6+ {[%emt 0:02:00]} Kh8 {[%emt 0:00:39]} 33. Nxg6+ {[%emt 0:03:05]} fxg6 {[%emt 0:00:36]} 34. Qxg6 {[%emt 0:00:03]} c1=Q+ {[%emt 0:00:44]} 35. Rxc1 {[%emt 0:00:30]} Nc2+ {[%emt 0:00:30]} 36. Kb1 {[%emt 0:00:22]} Rf7 {[%emt 0:00:00]} 37. Qxf7 {[%emt 0:00:30]} Nxd4 {[%emt 0:00:20]} 38. Nxd4 {[%emt 0:01:46]} Rb8 {[%emt 0:00:47]} 39. Rg6 {[%emt 0:01:13]} Rxb3+ {[%emt 0:00:35]} 40. Qxb3 {[%emt 0:00:00]} 1-0

[Event "World Junior U20 Girls 2018"]
[Site "Gebze"]
[Date "2018.09.10"]
[Round "6"]
[White "Nass, Sara"]
[Black "Santeramo, Alessia"]
[Result "1-0"]
[ECO "B34"]
[WhiteElo "1888"]
[BlackElo "2124"]
[Annotator "NA"]
[PlyCount "71"]
[EventDate "2018.09.05"]
[EventType "swiss"]
[EventCountry "TUR"]
[SourceTitle "playchess.com"]
[Source "ChessBase"]
[SourceQuality "1"]
[TimeControl "40/5400+30:1800+30"]

1. e4 {[%emt 0:00:30]} c5 {[%emt 0:00:30]} 2. Nf3 {[%emt 0:00:00]} g6 {[%emt 0:00:00]} 3. d4 {[%emt 0:01:00]} cxd4 {[%emt 0:00:00]} 4. Nxd4 {[%emt 0:00:00]} Bg7 {[%emt 0:00:30]} 5. Nc3 {[%emt 0:00:00]} Nc6 {[%emt 0:00:30]} 6. Be3 {[%emt 0:01:30]} Nf6 {[%emt 0:00:00]} 7. f3 {[%emt 0:00:30]} Qb6 {[%emt 0:01:00]} 8. Na4 {[%emt 0:12:30] B34: Sicilian: Accelerated Dragon with 5 Nc3: sidelines} (8. Ncb5 Qa5+ 9. c3 O-O 10. Nb3 Qd8 11. c4 b6 12. Qd2 Bb7 13. Be2 d6 14. O-O Nd7 15. Rfd1 Rc8 {½-½ (52) Primbetov,M (2222)-Rooze,J (2314) Acqui Terme 2017}) 8... Qa5+ {[%emt 0:09:30]} 9. c3 {[%emt 0:01:30]} d6 {[%emt 0:00:30]} 10. Bb5 {[%emt 0:15:30]} Bd7 {[%emt 0:01:30]} 11. O-O $146 {[%emt 0:02:30]} ({Predecessor:} 11. b4 Qc7 12. Rc1 a6 13. Bxc6 bxc6 {½-½ (21) Okun,E (2096)-Karabakhtsian,A Anapa 2008}) 11... O-O {[%emt 0:00:30]} 12. b4 {[%emt 0:07:30]} Qd8 {[%emt 0:03:30]} (12... Qc7 $5 {[%cal Rc6d4]}) 13. Bxc6 {[%emt 0:05:30]} bxc6 {[%emt 0:01:30]} 14. Nb2 {[%emt 0:07:30]} a5 {[%emt 0:15:30]} 15. a3 {[%emt 0:03:30]} e5 {[%emt 0:19:30]} 16. Nb3 {[%emt 0:03:30]} axb4 {[%emt 0:00:30]} 17. axb4 {[%emt 0:01:30]} Be6 {[%emt 0:02:30]} 18. Na5 {[%emt 0:10:30]} Qc7 {[%emt 0:00:00]} 19. Nac4 {[%emt 0:08:36]} d5 $15 {[%emt 0:04:00]} 20. Nd2 {[%emt 0:05:07]} Nd7 {[%emt 0:08:30]} 21. Na4 {[%emt 0:03:27]} f5 {[%emt 0:08:30]} 22. Nc5 {[%emt 0:02:02]} Nxc5 {[%emt 0:00:30]} 23. Bxc5 {[%emt 0:00:05]} Rfd8 {[%emt 0:00:30]} 24. Qc2 {[%emt 0:01:14]} Bh6 {[%emt 0:02:30]} 25. exd5 {[%emt 0:01:25]} Bxd5 {[%emt 0:02:23]} 26. Nb3 {[%emt 0:00:50]} Bc4 {[%emt 0:03:53]} 27. Rfd1 {[%emt 0:00:54]} Rxa1 {[%emt 0:02:31]} 28. Rxa1 {[%emt 0:00:16]} Qf7 {[%emt 0:10:06]} 29. Na5 {[%emt 0:00:45]} Rd2 {[%emt 0:00:11]} 30. Qb1 {[%emt 0:00:32]} Ba2 {[%emt 0:03:16]} 31. Qe1 {[%emt 0:01:20]} Qd5 {[%emt 0:00:23]} 32. c4 {[%emt 0:01:10]} Bxc4 {[%emt 0:00:55]} 33. Nxc4 {[%emt 0:00:07]} Qxc4 {[%emt 0:00:09]} 34. Qxe5 {[%emt 0:00:55]} Rd8 {[%emt 0:00:13]} 35. Bb6 {[%emt 0:01:26]} Rf8 {[%emt 0:01:19]} 36. Bd4 {[%emt 0:00:11]} 1-0

[Event "World Junior U20 Girls 2018"]
[Site "Gebze"]
[Date "2018.09.10"]
[Round "6"]
[White "Nassr, Lina"]
[Black "Kyrkjebo, Marte B"]
[Result "1-0"]
[ECO "D05"]
[WhiteElo "1854"]
[BlackElo "1935"]
[Annotator "NA"]
[PlyCount "97"]
[EventDate "2018.09.05"]
[EventType "swiss"]
[EventCountry "TUR"]
[SourceTitle "playchess.com"]
[Source "ChessBase"]
[SourceQuality "1"]
[TimeControl "40/5400+30:1800+30"]

1. d4 {[%emt 0:00:30]} Nf6 {[%emt 0:00:30]} 2. Nf3 {[%emt 0:00:30]} e6 {[%emt 0:00:30]} 3. e3 {[%emt 0:00:00]} b6 {[%emt 0:00:00]} 4. Bd3 {[%emt 0:00:00]} Bb7 {[%emt 0:00:00]} 5. b3 {[%emt 0:00:00]} c5 {[%emt 0:00:00]} 6. Bb2 {[%emt 0:01:00]} Be7 {[%emt 0:00:00] LiveBook: 84 Partien} 7. O-O {[%emt 0:00:30]} O-O {[%emt 0:00:30]} 8. Nbd2 {[%emt 0:00:30]} Nc6 {[%emt 0:00:30]} 9. a3 {[%emt 0:00:30]} d5 {[%emt 0:00:30]} 10. Ne5 {[%emt 0:02:30] D05: Colle System with ...e6} (10. Qe2 Qc7 11. Rac1 Rac8 12. c4 dxc4 13. bxc4 cxd4 14. exd4 Rfe8 15. Rfe1 Qb8 16. Ne4 Na5 17. Neg5 Qf4 18. Nxe6 fxe6 19. Qxe6+ {0-1 (33) Mamedyarov,S (2808)-Nakamura,H (2769) Paris 2018}) 10... Nd7 {[%emt 0:27:30]} 11. f4 {[%emt 0:06:30]} f6 {[%emt 0:04:30]} 12. Qh5 {[%emt 0:08:30]} f5 {[%emt 0:05:30]} 13. Qh3 $146 {[%emt 0:04:30]} ({Predecessor:} 13. Nxd7 Qxd7 14. g4 cxd4 15. Bxd4 Nxd4 16. exd4 Bf6 17. Nf3 g6 {1-0 (56) Hipler,A (1873)-Mut,F (1727) Hofheim 2014}) 13... Nf6 {[%emt 0:05:30]} 14. Ndf3 {[%emt 0:06:30]} Ne4 {[%emt 0:03:30]} 15. Rad1 {[%emt 0:04:30]} Qc8 {[%emt 0:03:30]} 16. c4 {[%emt 0:09:30]} Na5 {[%emt 0:06:30]} 17. Bxe4 {[%emt 0:27:30]} dxe4 {[%emt 0:10:30]} 18. Nd2 {[%emt 0:00:30]} Nc6 {[%emt 0:05:30]} 19. Nb1 {[%emt 0:02:30]} Nxe5 {[%emt 0:02:30]} 20. dxe5 {[%emt 0:00:30]} Rd8 {[%emt 0:02:30]} 21. Nc3 {[%emt 0:08:25]} Rd3 {[%emt 0:06:14]} 22. Rfe1 {[%emt 0:03:58]} Qd7 {[%emt 0:02:24]} 23. Qh5 {[%emt 0:00:57]} Rd8 {[%emt 0:02:04]} 24. Qe2 {[%emt 0:00:20]} a6 {[%emt 0:01:24]} 25. a4 {[%emt 0:00:39]} Bc6 {[%emt 0:00:31]} 26. Rxd3 {[%emt 0:02:36]} exd3 {[%emt 0:01:31]} 27. Qd2 {[%emt 0:00:15]} Be4 {[%emt 0:01:38]} 28. Rd1 {[%emt 0:07:30]} Bf8 {[%emt 0:00:28]} 29. Rf1 {[%emt 0:01:07]} Qf7 {[%emt 0:00:56]} 30. Nxe4 {[%emt 0:01:21]} fxe4 {[%emt 0:00:07]} 31. Bc3 {[%emt 0:00:17]} Qf5 {[%emt 0:01:18]} 32. Qd1 {[%emt 0:00:25]} Rd7 {[%emt 0:03:27]} 33. g4 {[%emt 0:00:26]} Qg6 {[%emt 0:01:18]} 34. Kh1 {[%emt 0:00:19]} Qe8 {[%emt 0:02:53]} 35. f5 {[%emt 0:00:29]} Rf7 {[%emt 0:00:36]} 36. Rf2 {[%emt 0:01:15]} exf5 {[%emt 0:01:04]} 37. gxf5 {[%emt 0:00:09]} g6 {[%emt 0:00:00]} 38. Qg4 {[%emt 0:00:26]} Bg7 {[%emt 0:00:32]} 39. f6 {[%emt 0:00:24]} Bh6 {[%emt 0:00:28]} 40. Qxe4 {[%emt 0:00:00]} Qe6 {[%emt 0:00:00]} 41. Qd5 {[%emt 0:15:39]} Qg4 $18 {[%emt 0:19:11]} 42. e6 {[%emt 0:01:14]} Qd1+ {[%emt 0:03:36]} 43. Kg2 {[%emt 0:00:11]} Qg4+ {[%emt 0:01:31]} 44. Kf1 {[%emt 0:00:38]} Qh3+ {[%emt 0:03:46]} 45. Rg2 {[%emt 0:00:36]} d2 {[%emt 0:02:34]} 46. exf7+ {[%emt 0:00:34]} Kf8 {[%emt 0:01:21]} 47. Qd8+ {[%emt 0:00:19]} Kxf7 {[%emt 0:00:42]} 48. Qe7+ {[%emt 0:00:30]} Kg8 {[%emt 0:00:00]} 49. f7# {[%emt 0:00:00]} 1-0